Cogmind - Beta 11 X6 @@@ ROGUE MODE // 2021.08.09 @ 12:29:04 Player: weirdfoe Result: Self-destructed Performance ------------- Evolutions (5) 2500 Regions Visited (10) 2000 Robots Destroyed (57) 285 Value Destroyed (1608) 1608 Prototype IDs (7) 140 Alien Tech Used (0) 0 Bonus (398) 398 TOTAL SCORE: 6931 Bonus ------- High Alert Combat Kills 13 Follower Combat Kills 85 Aligned with FarCom 300 Cogmind --------- Core Integrity 1000/1000 Matter 240/300 Energy 520/520 System Corruption 0% Temperature Cool (0) Movement Rolling (130) Ox2 Location -5/Factory Parts ------- > --- POWER (2) -------- Heavy Deuterium Engine Heavy Deuterium Engine > --- PROPULSION (4) --- Light Treads Compact Wheel Compact Wheel > --- UTILITY (7) ------ Power Amplifier Improved Heat Sink Large Storage Unit Advanced Targeting Computer Hardened Light Armor Plating Hardened Light Armor Plating Layered Light Armor Plating > --- WEAPON (4) ------- Precision Beam Rifle Cooled Pulse Rifle Precision Assault Rifle Precision Assault Rifle > --- INVENTORY (15) --- Improved Heat Sink Small Storage Unit Medium Matter Pod (100) Advanced Targeting Computer Cloak of Protection Hardened Light Armor Plating Layered Light Armor Plating Layered Light Armor Plating Heavy Assault Cannon Grenade Launcher Mining Laser Peak State ------------ > --- POWER ------------ Heavy Deuterium Engine Heavy Deuterium Engine > --- PROPULSION ------- Light Treads Compact Wheel Compact Wheel > --- UTILITY ---------- Power Amplifier Improved Heat Sink Large Storage Unit Advanced Targeting Computer Hardened Light Armor Plating Hardened Light Armor Plating Layered Light Armor Plating > --- WEAPON ----------- Precision Beam Rifle Cooled Pulse Rifle Precision Assault Rifle Precision Assault Rifle > --- INVENTORY -------- Improved Heat Sink Small Storage Unit Medium Matter Pod Advanced Targeting Computer Cloak of Protection Hardened Light Armor Plating Layered Light Armor Plating Layered Light Armor Plating Heavy Assault Cannon Grenade Launcher Mining Laser [Rating: 55] Favorites ----------- Power Makeshift Power Source Engine Makeshift Power Source Propulsion Light Treads Treads Light Treads Wheel Compact Wheel Utility Improved Heat Sink Device Improved Heat Sink Storage Large Storage Unit Processor Advanced Targeting Computer Protection Improved Light Armor Plating Weapon Medium Laser Energy Gun Medium Laser Ballistic Gun Precision Assault Rifle Ballistic Cannon Heavy Assault Cannon Launcher Shock Bomb Launcher Build | -11 -10 -10 -10 -9 -8 -7 -7 -7 -6 -5 ------- Run | Scr Mat Min Exi Min Mat Fac Low Low Fac Fac Slots Evolved 10 | . . . . . 4 2 . . 2 2 Power 1 | . . . . . . . . . 1 . Propulsion 2 | . . . . . 2 . . . . . Utility 5 | . . . . . 2 1 . . 1 1 Weapon 2 | . . . . . . 1 . . . 1 Parts Attached 71 | 6 7 . 4 1 6 30 5 6 4 2 Power 8 | 1 . . . 1 . 2 . 3 1 . Engine 8 | 1 . . . 1 . 2 . 3 1 . Core . | . . . . . . . . . . . Reactor . | . . . . . . . . . . . Propulsion 15 | 2 3 . . . 2 7 1 . . . Treads 4 | . 2 . . . 1 . 1 . . . Leg . | . . . . . . . . . . . Wheel 11 | 2 1 . . . 1 7 . . . . Hover . | . . . . . . . . . . . Flight . | . . . . . . . . . . . Utility 29 | 1 3 . 4 . 3 7 4 3 3 1 Device 16 | . 2 . 3 . 2 4 2 2 1 . Storage 3 | 1 1 . 1 . . . . . . . Processor 1 | . . . . . . . . . 1 . Hackware . | . . . . . . . . . . . Protection 9 | . . . . . 1 3 2 1 1 1 Artifact . | . . . . . . . . . . . Weapon 19 | 2 1 . . . 1 14 . . . 1 Energy Gun 12 | 2 1 . . . . 9 . . . . Energy Cannon . | . . . . . . . . . . . Ballistic Gun 4 | . . . . . . 3 . . . 1 Ballistic Cannon 2 | . . . . . 1 1 . . . . Launcher 1 | . . . . . . 1 . . . . Special Weapon . | . . . . . . . . . . . Impact Weapon . | . . . . . . . . . . . Slashing Weapon . | . . . . . . . . . . . Piercing Weapon . | . . . . . . . . . . . Special Melee Weapon . | . . . . . . . . . . . Unidentified Prototypes 7 | . . . 2 . . 5 . . . . Corrupted Parts 2 | . . . . . . 2 . . . . System Corruption 2 | . . . . . . 2 . . . . Parts Lost 9 | . . . . . . 5 3 1 . . Power 1 | . . . . . . 1 . . . . Propulsion 3 | . . . . . . 1 2 . . . Utility 5 | . . . . . . 3 1 1 . . Weapon . | . . . . . . . . . . . Highest Loss Streak 2 | . . . . . . 2 1 1 . . Average Slot Usage (%) 95 | . 98 100 99 100 90 96 93 91 92 94 Engine 9 | . 14 14 14 14 9 6 7 7 13 11 Treads 16 | . 4 28 28 28 27 17 1 7 6 5 Wheel 12 | . 23 . . . 9 12 22 15 13 11 Device 15 | . 12 14 13 14 18 14 15 15 13 11 Storage 8 | . 14 14 14 14 9 7 7 7 6 5 Protection 10 | . . . . . 8 15 14 14 16 17 Energy Gun 14 | . 28 28 28 28 . 11 15 15 13 11 Ballistic Gun 3 | . . . . . . 4 7 7 6 11 Ballistic Cannon 2 | . . . . . 8 2 . . . . Naked Turns . | . . . . . . . . . . . Heaviest Build 72 | 14 31 30 30 30 41 55 56 53 68 72 Greatest Support 60 | 26 40 40 40 40 60 60 58 32 32 32 Greatest Overweight (x) 2 | . 1 . . . . 1 2 1 2 2 Average Overweight (x) . | . . . . . . . . 1 1 2 Largest Inventory Capacity 15 | 8 15 15 15 15 15 15 15 15 15 15 Average Capacity 14 | 6 14 15 15 15 15 15 15 15 15 15 Most Carried 15 | 4 10 11 12 13 14 15 15 14 14 13 Average Carried 12 | 1 7 10 11 12 12 11 14 13 12 12 Final Capacity 15 | 8 15 15 15 15 15 15 15 15 15 15 Final Carried 15 | 4 10 11 12 13 13 15 14 13 14 12 Class Distribution -------------------- 44% | Mutant 33% | Scavenger-Tank 21% | Tank Dominant Class ---------------- Mutant | -10/Materials Mutant | -10/Mines Mutant | -10/Exiles Mutant | -9/Mines Mutant | -8/Materials Tank | -7/Factory Scavenger-Tank | -7/Lower Caves Scavenger-Tank | -7/Lower Caves Tank | -6/Factory Tank | -5/Factory Resources | -11 -10 -10 -10 -9 -8 -7 -7 -7 -6 -5 ----------- Run | Scr Mat Min Exi Min Mat Fac Low Low Fac Fac Matter Collected 1583 | 260 51 119 . 50 96 656 249 102 . . Remotely . | . . . . . . . . . . . Salvage Created 2309 | . 136 196 . 88 43 1031 639 176 . . Parts 99 | . 4 10 . 3 2 55 18 7 . . Haulers Intercepted 4 | . 1 . . . . 3 . . . . Recyclers Shooed 4 | . . 2 . . . 2 . . . . Parts Field Recycled . | . . . . . . . . . . . Retrieved Matter . | . . . . . . . . . . . Parts Self-Destructed 22 | . . . . . . . 17 5 . . Prevented . | . . . . . . . . . . . Kills | -11 -10 -10 -10 -9 -8 -7 -7 -7 -6 -5 ------- Run | Scr Mat Min Exi Min Mat Fac Low Low Fac Fac Combat Hostiles Destroyed 33 | . 2 5 . . 1 10 12 3 . . Guns 28 | . 2 5 . . . 6 12 3 . . Cannons 3 | . . . . . 1 2 . . . . AOE 2 | . . . . . . 2 . . . . Classes Destroyed 14 | . 2 2 . 1 1 5 2 1 . . Worker 7 | . . . . 1 . 6 . . . . Builder 1 | . . . . . . 1 . . . . Tunneler 1 | . . . . . . 1 . . . . Hauler 4 | . 1 . . . . 3 . . . . Recycler 7 | . . 1 . 1 . 5 . . . . Minesweeper 1 | . . . . . . . . 1 . . Operator 1 | . . . . . . 1 . . . . Watcher 2 | . . . . . . 2 . . . . Swarmer 6 | . . 3 . . . 3 . . . . Grunt 17 | . 2 2 . . . 1 9 3 . . Brawler 1 | . . . . . . . 1 . . . Sentry 5 | . . . . . 1 3 1 . . . Hunter 1 | . . . . . . . 1 . . . Programmer 3 | . . . . . . 3 . . . . Best Kill Streak 5 | . 2 3 . 1 1 4 5 2 . . Combat Bots Only 5 | . 2 3 . . 1 3 5 2 . . Max Kills in Single Turn 2 | . 1 1 . 1 1 2 2 1 . . Gunslinging 1 | . . . . . . . 1 . . . Exploded 2 | . . . . . . 2 . . . . Melee . | . . . . . . . . . . . Uniques/NPCs Destroyed . | . . . . . . . . . . . Combat | -11 -10 -10 -10 -9 -8 -7 -7 -7 -6 -5 -------- Run | Scr Mat Min Exi Min Mat Fac Low Low Fac Fac Damage Taken 2593 | . 45 105 . . . 1312 940 191 . . Core 325 | . 14 . . . . 129 124 58 . . Absorbed by Shields . | . . . . . . . . . . . Core Remaining (%) 89 | 100 . . . 94 100 . . 55 100 . Volleys Fired 158 | . 15 14 . 5 10 71 34 9 . . Largest 3 | . 2 2 . 2 1 3 3 3 . . Hottest 178 | . 100 100 . 100 60 178 109 109 . . Shots Fired 383 | . 30 28 . 10 10 177 102 26 . . Gun 352 | . 30 28 . 10 . 156 102 26 . . Cannon 28 | . . . . . 10 18 . . . . Launcher 3 | . . . . . . 3 . . . . Special . | . . . . . . . . . . . Kinetic 113 | . . . . . 10 61 34 8 . . Thermal 219 | . 30 28 . 10 . 65 68 18 . . Explosive . | . . . . . . . . . . . Electromagnetic 51 | . . . . . . 51 . . . . Robot Hit Streak 27 | . 5 15 . 8 2 11 27 14 . . Robot Miss Streak 7 | . 4 3 . 1 . 7 4 1 . . Penetration Max . | . . . . . . . . . . . Secondary Targets 5 | . . 1 . . . . 2 2 . . Max Gunslinging Chain 1 | . . 1 . . . . 1 1 . . Shots Hit Robots 260 | . 20 20 . 7 1 115 76 21 . . Core Hits 129 | . 7 11 . 3 1 76 24 7 . . Critical Kills . | . . . . . . . . . . . Critical Parts Destroyed . | . . . . . . . . . . . Critical Strikes 15 | . 2 6 . . . 1 4 2 . . Burn 15 | . 2 6 . . . 1 4 2 . . Melee Attacks . | . . . . . . . . . . . Impact . | . . . . . . . . . . . Slashing . | . . . . . . . . . . . Piercing . | . . . . . . . . . . . Sneak Attacks . | . . . . . . . . . . . Combat Hostiles . | . . . . . . . . . . . Follow-up Attacks . | . . . . . . . . . . . Damage Inflicted 5061 | . 251 248 . 87 59 2769 1253 394 . . Guns 4022 | . 251 248 . 87 . 1789 1253 394 . . Cannons 830 | . . . . . 59 771 . . . . Explosions 209 | . . . . . . 209 . . . . Melee . | . . . . . . . . . . . Ramming . | . . . . . . . . . . . Kinetic 1870 | . . . . . 59 1210 462 139 . . Thermal 2769 | . 251 248 . 87 . 1137 791 255 . . Explosive . | . . . . . . . . . . . Electromagnetic 422 | . . . . . . 422 . . . . Impact . | . . . . . . . . . . . Slashing . | . . . . . . . . . . . Piercing . | . . . . . . . . . . . Highest Corruption 7 | . . . . . . 7 7 7 . . Average Corruption 5 | . . . . . . 4 7 7 . . Corruption Purged . | . . . . . . . . . . . Effects 72 | . . . . . . 32 30 10 . . Message Errors 19 | . . . . . . 8 9 2 . . Matter Fused 15 | . . . . . . 6 7 2 . . Heat Flow Errors 9 | . . . . . . 5 3 1 . . Energy Discharges 7 | . . . . . . 5 2 . . . Data Loss (minor) 5 | . . . . . . 2 2 1 . . Data Loss (major) 7 | . . . . . . 1 3 3 . . Misfires 3 | . . . . . . 1 2 . . . Weapon Failures 7 | . . . . . . 4 2 1 . . Overload Shots . | . . . . . . . . . . . Overflow Damage 104 | . . . . . . 104 . . . . Projectiles 104 | . . . . . . 104 . . . . Explosions . | . . . . . . . . . . . Melee . | . . . . . . . . . . . Knockbacks 5 | . . . . . . 5 . . . . Impact . | . . . . . . . . . . . Kinetic 5 | . . . . . . 5 . . . . Secondary . | . . . . . . . . . . . Self-Inflicted Damage 36 | . . . . . . 36 . . . . Shots 1 | . . . . . . 1 . . . . Rammed . | . . . . . . . . . . . Targets Rammed . | . . . . . . . . . . . Kicked . | . . . . . . . . . . . Crushed . | . . . . . . . . . . . Highest Temperature 249 | . 195 15 . 3 . 219 249 89 . . Average Temperature 52 | . 89 9 . 2 . 43 89 66 . . Received Heat Transfer 816 | . 27 36 . . . 213 441 99 . . Siege Activations . | . . . . . . . . . . . Robots Corrupted . | . . . . . . . . . . . Combat Hostiles . | . . . . . . . . . . . Parts Fried . | . . . . . . . . . . . Impact Corruptions . | . . . . . . . . . . . Robots Melted 1 | . 1 . . . . . . . . . Combat Hostiles . | . . . . . . . . . . . Parts Melted 9 | . 3 4 . . . 1 . 1 . . Heat Transferred 6145 | . 888 1184 . 259 . 1224 1924 666 . . Parts Sabotaged . | . . . . . . . . . . . Parts Stolen . | . . . . . . . . . . . Parts Stripped . | . . . . . . . . . . . Power Chain Reactions 1 | . . . . . . 1 . . . . Missiles Intercepted . | . . . . . . . . . . . Alert | -11 -10 -10 -10 -9 -8 -7 -7 -7 -6 -5 ------- Run | Scr Mat Min Exi Min Mat Fac Low Low Fac Fac Peak Influence 559 | . 117 170 . 84 61 559 . . 166 81 Initial 166 | . . 45 . . 32 . . . 166 81 Average 92 | . 60 141 . 27 43 116 . . 166 81 Maximum Alert Level 2 | . . . . . . 2 . . . . Low Security (%) 94 | 100 100 100 . 100 100 88 . . 100 100 Level 1 1 | . . . . . . 3 . . . . Level 2 3 | . . . . . . 7 . . . . Level 3 . | . . . . . . . . . . . Level 4 . | . . . . . . . . . . . Level 5 . | . . . . . . . . . . . High Security . | . . . . . . . . . . . Max Security . | . . . . . . . . . . . Squads Dispatched 8 | . . . . . 1 7 . . . . Investigation . | . . . . . . . . . . . Extermination 3 | . . . . . . 3 . . . . Reinforcement 4 | . . . . . 1 3 . . . . Assault . | . . . . . . . . . . . Garrison 1 | . . . . . . 1 . . . . Intercept . | . . . . . . . . . . . Construction Impeded . | . . . . . . . . . . . Haulers Reinforced 1 | . . . . . . 1 . . . . Active Scanning Responses . | . . . . . . . . . . . Cargo Convoy Interrupts 1 | . . . . . . 1 . . . . Stealth | -11 -10 -10 -10 -9 -8 -7 -7 -7 -6 -5 --------- Run | Scr Mat Min Exi Min Mat Fac Low Low Fac Fac Distress Signals 1 | . . . . . . 1 . . . . Communications Jammed . | . . . . . . . . . . . Distress Signals . | . . . . . . . . . . . Times Spotted 53 | . 4 5 . . 2 23 16 3 . . Peak Tracking Total 7 | . 2 3 . . 1 3 7 3 . . Tactical Retreats 8 | . 2 . . . . 2 4 . . . Traps | -11 -10 -10 -10 -9 -8 -7 -7 -7 -6 -5 ------- Run | Scr Mat Min Exi Min Mat Fac Low Low Fac Fac Traps Triggered 2 | . 1 . . . . 1 . . . . Indirectly . | . . . . . . . . . . . Trap Hack Attempts . | . . . . . . . . . . . Triggered . | . . . . . . . . . . . Disarmed . | . . . . . . . . . . . Reprogrammed . | . . . . . . . . . . . Reused . | . . . . . . . . . . . Traps Extracted . | . . . . . . . . . . . Installed . | . . . . . . . . . . . Triggered 1 | . . . . . . 1 . . . . Machines | -11 -10 -10 -10 -9 -8 -7 -7 -7 -6 -5 ---------- Run | Scr Mat Min Exi Min Mat Fac Low Low Fac Fac Machines Disabled 1 | . . . . . 1 . . . . . Max in Single Turn 1 | . . . . . 1 . . . . . Machines Sabotaged . | . . . . . . . . . . . Garrisons Compromised 1 | . . . . . . 1 . . . . Overloaded Fab Kills . | . . . . . . . . . . . Fab Network Shutdowns . | . . . . . . . . . . . Hacking | -11 -10 -10 -10 -9 -8 -7 -7 -7 -6 -5 --------- Run | Scr Mat Min Exi Min Mat Fac Low Low Fac Fac Machines Accessed 4 | . . . . . 1 2 1 . . . Terminals 3 | . . . . . 1 2 . . . . Fabricators . | . . . . . . . . . . . Repair Stations . | . . . . . . . . . . . Recycling Units . | . . . . . . . . . . . Scanalyzers . | . . . . . . . . . . . Garrison Access . | . . . . . . . . . . . Total Hacks 7 | . . . . . 3 3 1 . . . Successful 4 | . . . . . 2 1 1 . . . Failed 3 | . . . . . 1 2 . . . . Catastrophic 2 | . . . . . . 2 . . . . Database Lockouts . | . . . . . . . . . . . Manual 7 | . . . 1 . 3 3 . . . . Terminals 6 | . . . . . 3 3 . . . . Fabricators . | . . . . . . . . . . . Repair Stations . | . . . . . . . . . . . Recycling Units . | . . . . . . . . . . . Scanalyzers . | . . . . . . . . . . . Garrison Access . | . . . . . . . . . . . Terminal Hacks 4 | . . . . . 2 1 1 . . . Open Door 1 | . . . . . . . 1 . . . Branch Access Points 1 | . . . . . 1 . . . . . Zone Layout 2 | . . . . . 1 1 . . . . Fabricator Hacks . | . . . . . . . . . . . Repair Station Hacks . | . . . . . . . . . . . Recycling Unit Hacks . | . . . . . . . . . . . Scanalyzer . | . . . . . . . . . . . Garrison Access Hacks . | . . . . . . . . . . . Unauthorized Hacks . | . . . . . . . . . . . Terminals . | . . . . . . . . . . . Fabricators . | . . . . . . . . . . . Repair Stations . | . . . . . . . . . . . Recycling Units . | . . . . . . . . . . . Scanalyzers . | . . . . . . . . . . . Garrison Access . | . . . . . . . . . . . Data Cores Recovered . | . . . . . . . . . . . Used . | . . . . . . . . . . . Hacking Detections 3 | . . . . . 1 2 . . . . Full Trace Events . | . . . . . . . . . . . Feedback Events . | . . . . . . . . . . . Feedback Blocked . | . . . . . . . . . . . Robot Schematics Acquired . | . . . . . . . . . . . Robots Built . | . . . . . . . . . . . Matter . | . . . . . . . . . . . Time . | . . . . . . . . . . . Total Robot Build Rating . | . . . . . . . . . . . Part Schematics Acquired . | . . . . . . . . . . . Parts Built . | . . . . . . . . . . . Matter . | . . . . . . . . . . . Time . | . . . . . . . . . . . Total Part Build Rating . | . . . . . . . . . . . Parts Repaired . | . . . . . . . . . . . Time . | . . . . . . . . . . . Parts Recycled . | . . . . . . . . . . . Recycled Matter . | . . . . . . . . . . . Retrieved Matter . | . . . . . . . . . . . Retrieved Components . | . . . . . . . . . . . Parts Scanalyzed . | . . . . . . . . . . . Part Schematics Acquired . | . . . . . . . . . . . Parts Damaged . | . . . . . . . . . . . Bothacking | -11 -10 -10 -10 -9 -8 -7 -7 -7 -6 -5 ------------ Run | Scr Mat Min Exi Min Mat Fac Low Low Fac Fac Used RIF Installer . | . . . . . . . . . . . Robots Hacked . | . . . . . . . . . . . Non-combat . | . . . . . . . . . . . Combat . | . . . . . . . . . . . Robot Hacks Applied . | . . . . . . . . . . . Relay Couplers Released 1 | . . . . . . 1 . . . . Machine Destruction 1 | . . . . . . 1 . . . . Robots Rewired . | . . . . . . . . . . . Allies Hacked . | . . . . . . . . . . . Hacks Repelled . | . . . . . . . . . . . Allies | -11 -10 -10 -10 -9 -8 -7 -7 -7 -6 -5 -------- Run | Scr Mat Min Exi Min Mat Fac Low Low Fac Fac Total Allies 20 | . . . . 2 . 18 . . . . Largest Group 14 | . . . . 2 1 14 . . . . Highest-Rated Group 567 | . . . . 50 31 567 . . . . Highest-Rated Ally 74 | . . . . 31 31 74 . . . . Total Orders . | . . . . . . . . . . . Ally Attacks 46 | . . . . 10 3 33 . . . . Total Damage 810 | . . . . 166 63 581 . . . . Kills 11 | . . . . 3 . 8 . . . . Allies Corrupted . | . . . . . . . . . . . Allies Melted 1 | . . . . . . 1 . . . . Intel | -11 -10 -10 -10 -9 -8 -7 -7 -7 -6 -5 ------- Run | Scr Mat Min Exi Min Mat Fac Low Low Fac Fac Robot Analysis Total . | . . . . . . . . . . . Derelict Logs Recovered 6 | . . 1 . 2 . . 3 . . . Drone Launches . | . . . . . . . . . . . Drone Recoveries . | . . . . . . . . . . . Exploration | -11 -10 -10 -10 -9 -8 -7 -7 -7 -6 -5 ------------- Run | Scr Mat Min Exi Min Mat Fac Low Low Fac Fac Turns Passed 5750 | 48 252 286 360 331 885 2031 1071 249 203 34 Spaces Moved 3117 | 40 158 142 218 188 288 857 871 172 159 24 Core 2 | 2 . . . . . . . . . . Treads 1379 | . 20 142 218 188 288 514 9 . . . Legs . | . . . . . . . . . . . Wheels 1736 | 38 138 . . . . 343 862 172 159 24 Hover . | . . . . . . . . . . . Flight . | . . . . . . . . . . . Fastest Speed 50 | 50 90 160 160 160 160 90 95 115 115 130 Average Speed 130 | 87 109 160 160 160 160 136 107 115 123 130 Slowest Speed 360 | 90 160 160 160 160 160 160 360 115 130 130 Overloaded Moves . | . . . . . . . . . . . Propulsion Burnouts . | . . . . . . . . . . . Robots Hopped 1 | . . . . . . . 1 . . . Cave-ins Triggered . | . . . . . . . . . . . Exploration Rate (%) 30 | 3 33 24 60 41 31 17 95 21 4 1 Regions Visited 10 Branch Regions 5 Pre-discovered Areas 3 | . . . . 2 . . 1 . . . Known Exits Taken . | . . . . . . . . . . . Unknown Exits Taken 10 | 1 1 1 1 1 1 1 1 1 1 . Scrap Searched 5 | . . 1 . . . . 3 1 . . Spaces Dug 12 | . . . . . 11 1 . . . . Terrain Destroyed 19 | . . . . . 11 8 . . . . Melee . | . . . . . . . . . . . Projectile 17 | . . . . . 11 6 . . . . AOE 2 | . . . . . . 2 . . . . Terrain Rammed . | . . . . . . . . . . . Walls Destroyed . | . . . . . . . . . . . Machines Disabled . | . . . . . . . . . . . Actions | -11 -10 -10 -10 -9 -8 -7 -7 -7 -6 -5 --------- Run | Scr Mat Min Exi Min Mat Fac Low Low Fac Fac Total 4455 | 49 206 173 230 209 699 1566 929 202 166 26 Wait 1042 | . 20 17 3 12 388 577 12 12 1 . Move 3105 | 39 157 141 217 187 287 856 868 171 158 24 Hop 1 | . . . . . . . 1 . . . Pick Up 27 | 4 4 1 2 2 3 9 1 . 1 . Fast Attach 34 | 6 4 . 2 1 2 11 3 3 2 . Attach 23 | . 1 . 2 . 4 10 1 1 2 2 Detach 12 | . 2 . 1 . 3 4 . . 2 . Swap 14 | . 2 . . . . 9 1 2 . . Drop 35 | . 1 . 3 2 2 19 4 4 . . Fire 158 | . 15 14 . 5 10 71 34 9 . . Melee . | . . . . . . . . . . . Ram . | . . . . . . . . . . . Kick . | . . . . . . . . . . . Crush . | . . . . . . . . . . . Escape Stasis . | . . . . . . . . . . . Rewire 4 | . . . . . . . 4 . . . Trap . | . . . . . . . . . . . Miscellaneous . | . . . . . . . . . . . Route ------- -11/Scrapyard -10/Materials -10/Mines (discovered 2 exits: Mat / *Exi) -10/Exiles -9/Mines -8/Materials -7/Factory -7/Lower Caves -7/Lower Caves -6/Factory -5/Factory History --------- Turn | Location | Event 22 | -11/Scrapyard | Discovered new exit (range 14) 49 | -11/Scrapyard | Entered Materials 251 | -10/Materials | Discovered new exit (range 9) 301 | -10/Materials | Entered Mines 307 | -10/Mines | Build established: Mutant 308 | -10/Mines | Identified exit to Materials 581 | -10/Mines | Deemed a non-threat by the Exiles lab entrance 581 | -10/Mines | Discovered new exit (range 5) 587 | -10/Mines | Entered Exiles 626 | -10/Exiles | Met 8R-AWN 655 | -10/Exiles | Met EX-HEX 696 | -10/Exiles | Met EX-BIN 733 | -10/Exiles | Aligned with FarCom system 735 | -10/Exiles | Given EX-Vault access code 771 | -10/Exiles | Opened EX-Vault 778 | -10/Exiles | Found Prototype Storage 778 | -10/Exiles | Identified Superbattery 785 | -10/Exiles | Found Prototype Device 785 | -10/Exiles | Identified Cloak of Protection 827 | -10/Exiles | Warned to stay clear of 0b10 Research branches 845 | -10/Exiles | Exiles lab attacked by MAIN.C 934 | -10/Exiles | Discovered new exit (range 10) 947 | -10/Exiles | Left Exiles lab with Cloak of Protection 947 | -10/Exiles | Entered Mines 1071 | -9/Mines | Discovered new exit (range 11) 1127 | -9/Mines | Learned location of Zion (-7) 1278 | -9/Mines | Entered Materials 1278 | -8/Materials | Accompanied by 1 ally 1278 | -8/Materials | Evolved 4 slots: Propulsion x2, Utility x2 1283 | -8/Materials | Led the pair of lost Derelicts to an unsafe place 2157 | -8/Materials | Discovered new exit (range 5) 2163 | -8/Materials | Entered Factory 2163 | -7/Factory | Evolved 2 slots: Utility x1, Weapon x1 2912 | -7/Factory | Build established: Tank 3663 | -7/Factory | Garrison activated, responded to threat 3906 | -7/Factory | Build established: Scavenger-Tank 4045 | -7/Factory | Cargo convoy interrupted 4122 | -7/Factory | Discovered new exit (range 11) 4194 | -7/Factory | Entered Lower Caves 4195 | -7/Lower Caves | Encountered a Warlord checkpoint 4288 | -7/Lower Caves | Learned location of Extension (-6) 4422 | -7/Lower Caves | Spotted B-75 Beast 4499 | -7/Lower Caves | Learned 4 Factory zone layouts 4641 | -7/Lower Caves | Learned Factory terminal intel 4861 | -7/Lower Caves | Attracted the attention of an 0b10 outpost 5238 | -7/Lower Caves | Discovered new exit (range 11) 5265 | -7/Lower Caves | Entered another Lower Caves area 5507 | -7/Lower Caves | Discovered new exit (range 7) 5514 | -7/Lower Caves | Entered Factory 5514 | -6/Factory | Evolved 2 slots: Power x1, Utility x1 5516 | -6/Factory | Loaded intel: 21 terminal locations 5664 | -6/Factory | Discovered new exit (range 10) 5717 | -6/Factory | Entered another Factory area 5717 | -5/Factory | Evolved 2 slots: Utility x1, Weapon x1 5751 | -5/Factory | Self-destructed Last Messages --------------- 05501_ System corrupted: Heat flow error (+134). 05507_ EXIT=FOUND PARAMETERS=POWER+1,UTILITY+1 LOCATION=UNKNOWN GOAL=ESCAPE 05514_ Receiving FarCom transmissions... Loading 4 Factory zones... Loading Factory terminal intel (x21)... 05633_ Acquired Adv. Targeting Computer. 05639_ Acquired Power Amplifier. 05655_ Acquired Adv. Targeting Computer. 05664_ EXIT=FOUND 05693_ Connecting with Recycling Unit... 05693_ Current location identified: Factory PARAMETERS=UTILITY+1,WEAPON+1 LOCATION=UNKNOWN GOAL=ESCAPE 05717_ Receiving FarCom transmissions... 05751_ Connecting with Terminal... 05751_ Current location identified: Factory Map ----- +----------------------------------------------------+ | ?????????????????????????????????????????????????? | | ?????????????????????????????????????????????????? | | ?????????????????????????????????????????????????? | | ?????????????????????????????????????????????????? | | ?????????????????????????????????????????????????? | | ????????????""???????????????????????????????????? | | ?????????????"???????????????????????????????????? | | ????????????? ??????????????????????????????????? | | ?????????????"" ?????????????????????????????????? | | ??????????" """ ????????????????????????????????? | | ?????????"" """ #####+###########???????????????? | | ???????? #???????????????? | | ????????? #???????????????? | | ???????????# #???????????????? | | ???????????# #???????????????? | | ???????????# #???????????????? | | ??????????????#######+#######+########???????????? | | ???????????????# ! # #???????????? | | ???????????????# # """ #???????????? | | ???????????????#* [ # """ [#???????????? | | ???????????????# """" #= """ #???????????? | | ???????????????# """" # #???????????? | | ???????????????# """" # """ #???????????? | | ???????????????# """" "" # """ #???????????? | | ???????????????# """" """#! """ #???????????? | | ????????????????? """" @T"# #???????????? | | ???????????????# """#######??????????????? | | ???????????????# "" #????????????????????? | | ???????????????# #????????????????????? | | ???????????????##############????????????????????? | | ?????????????????????????????????????????????????? | | ?????????????????????????????????????????????????? | | ?????????????????????????????????????????????????? | | ?????????????????????????????????????????????????? | | ?????????????????????????????????????????????????? | | ?????????????????????????????????????????????????? | | ?????????????????????????????????????????????????? | | ?????????????????????????????????????????????????? | | ?????????????????????????????????????????????????? | | ?????????????????????????????????????????????????? | | ?????????????????????????????????????????????????? | | | | | | | | | | | | | | | | | | | +----------------------------------------------------+ Best States ------------- Heat Dissipation 65 Energy Generation 36 Energy Capacity 1750 Matter Stores 300 Matter Capacity 300 Sight Range 16 Terrain Scan Density 10 ECM Strength 1 Cloak Strength 3 Power Amplification 20 Armor Coverage 450 Evasion (%) 42 Targeting Accuracy 8 Recoil Reduction 3 Item Schematics ----------------- None Robot Schematics ------------------ None Fabricated ------------ Nothing Alien Tech Used ----------------- None Achievements -------------- None Challenges ------------ None Game ------ Seed RagnarokDroneReconfigurator Manual? 0 Play Time 00:48:22 Cumulative 28.1 hours Start 2021.08.08 @ 22:20:07 End 2021.08.09 @ 12:29:04 Sessions 5 Manual Loads 0 Difficulty Rogue Special Mode None Game No. 79 Rogue 79 Adventurer 0 Explorer 0 Win Type - Total 0 Types 0/0/0/0/0/0/0/0/0 Lore% 30 Gallery% 35 Achievement% 24 Wizard Run 0 Options --------- ASCII 0 Keyboard 0 Movement Numpad Keybinds 0 Fullscreen 2 Font 18/TerminusBold Map View 76x50 Tactical HUD 1 Map Filters NONE Filters NONE Steam 1 RUN: c8fef6ab-1b9f-4924-9ac6-17e972032e89